[Event "Late-Titled-Tuesday-Blitz-April-16-2024"]
[Site "Chess.com"]
[Date "2024.04.16"]
[Round "6"]
[White "SilverCityIndigo"]
[Black "CrushingKings"]
[Result "0-1"]
[WhiteElo "2421"]
[BlackElo "2587"]
[TimeControl "180+1"]
[EndTime "15:02:27 PDT"]
[Termination "CrushingKings won by resignation"]

1. d4 {[%clk 0:03:00.9]} 1... g6 {[%clk 0:03:00.9]} 2. Nf3 {[%clk 0:02:59.3]}
2... Bg7 {[%clk 0:02:53.1]} 3. c4 {[%clk 0:02:59.5]} 3... Nf6 {[%clk 0:02:53.1]}
4. b3 {[%clk 0:02:56.4]} 4... O-O {[%clk 0:02:45.6]} 5. Bb2 {[%clk 0:02:56.1]}
5... d6 {[%clk 0:02:46.5]} 6. Nbd2 {[%clk 0:02:52]} 6... Nbd7 {[%clk 0:02:47.4]}
7. Qc2 {[%clk 0:02:49.4]} 7... c5 {[%clk 0:02:46.6]} 8. e3 {[%clk 0:02:45.9]}
8... Rb8 {[%clk 0:02:45.4]} 9. h3 {[%clk 0:02:36.9]} 9... a6 {[%clk 0:02:45.7]}
10. d5 {[%clk 0:02:29.6]} 10... b5 {[%clk 0:02:45.2]} 11. O-O-O {[%clk
0:02:17.9]} 11... bxc4 {[%clk 0:02:45.2]} 12. Nxc4 {[%clk 0:02:14.4]} 12... Nb6
{[%clk 0:02:36.3]} 13. Na5 {[%clk 0:02:07.2]} 13... Bd7 {[%clk 0:02:32.7]} 14.
Nc6 {[%clk 0:01:49.5]} 14... Bxc6 {[%clk 0:02:30.2]} 15. dxc6 {[%clk 0:01:50.4]}
15... Nbd5 {[%clk 0:02:29.9]} 16. a3 {[%clk 0:01:38.4]} 16... Qb6 {[%clk
0:02:29.9]} 17. Bc4 {[%clk 0:01:33.6]} 17... Qxc6 {[%clk 0:02:29.3]} 18. g4
{[%clk 0:01:27.2]} 18... Nb6 {[%clk 0:02:27.9]} 19. Be2 {[%clk 0:01:11.5]} 19...
e5 {[%clk 0:02:27.7]} 20. h4 {[%clk 0:00:44.4]} 20... Nxg4 {[%clk 0:02:19.6]}
21. Nd4 {[%clk 0:00:23.5]} 21... exd4 {[%clk 0:02:14.8]} 22. Bxg4 {[%clk
0:00:23.3]} 22... dxe3 {[%clk 0:02:05.9]} 23. Bxg7 {[%clk 0:00:22.6]} 23... Kxg7
{[%clk 0:02:06.5]} 24. Qc3+ {[%clk 0:00:21.2]} 24... Kg8 {[%clk 0:02:06]} 25. h5
{[%clk 0:00:19.5]} 25... Nd5 {[%clk 0:01:39]} 26. Qb2 {[%clk 0:00:11.4]} 26...
c4 {[%clk 0:01:30.7]} 27. hxg6 {[%clk 0:00:09.8]} 27... cxb3+ {[%clk 0:01:30.8]}
28. Kb1 {[%clk 0:00:09.7]} 28... Nc3+ {[%clk 0:01:13.8]} 29. Ka1 {[%clk
0:00:09.7]} 29... fxg6 {[%clk 0:01:14]} 30. Be6+ {[%clk 0:00:08.1]} 30... Kg7
{[%clk 0:01:11.6]} 31. Rc1 {[%clk 0:00:04.6]} 31... Rf6 {[%clk 0:00:59.2]} 32.
Rxc3 {[%clk 0:00:04.4]} 32... Qxh1+ {[%clk 0:00:58.6]} 33. Rc1 {[%clk
0:00:04.2]} 33... Qxc1+ {[%clk 0:00:58.5]} 34. Qxc1 {[%clk 0:00:04.2]} 34... b2+
{[%clk 0:00:59.1]} 35. Qxb2 {[%clk 0:00:03.6]} 35... Rxb2 {[%clk 0:00:59.7]} 36.
Kxb2 {[%clk 0:00:03.9]} 0-1

[Event "Late-Titled-Tuesday-Blitz-April-16-2024"]
[Site "Chess.com"]
[Date "2024.04.16"]
[Round "6"]
[White "Bryanl106"]
[Black "Itay121"]
[Result "1-0"]
[WhiteElo "2708"]
[BlackElo "2531"]
[TimeControl "180+1"]
[EndTime "15:02:31 PDT"]
[Termination "Bryanl106 won by resignation"]

1. e4 {[%clk 0:03:00.1]} 1... e5 {[%clk 0:02:59.8]} 2. Nf3 {[%clk 0:03:00.3]}
2... d5 {[%clk 0:02:59.7]} 3. exd5 {[%clk 0:02:58.6]} 3... Nf6 {[%clk
0:02:59.9]} 4. Nc3 {[%clk 0:02:55]} 4... Nxd5 {[%clk 0:02:51.7]} 5. Qe2 {[%clk
0:02:45.9]} 5... Nc6 {[%clk 0:02:35.9]} 6. d4 {[%clk 0:02:39.4]} 6... Bb4 {[%clk
0:02:26.8]} 7. Bd2 {[%clk 0:02:38.8]} 7... O-O {[%clk 0:02:22.2]} 8. dxe5 {[%clk
0:02:27.6]} 8... Nxc3 {[%clk 0:02:15.2]} 9. bxc3 {[%clk 0:02:24.4]} 9... Ba3
{[%clk 0:02:06.9]} 10. Qe4 {[%clk 0:02:23.3]} 10... g6 {[%clk 0:01:46.4]} 11.
Bd3 {[%clk 0:02:20.9]} 11... Bf5 {[%clk 0:01:29.3]} 12. Qe2 {[%clk 0:02:18.8]}
12... Bg4 {[%clk 0:01:29.2]} 13. O-O {[%clk 0:02:12.2]} 13... Bxf3 {[%clk
0:01:28]} 14. gxf3 {[%clk 0:02:13.1]} 14... Re8 {[%clk 0:01:21.3]} 15. f4 {[%clk
0:02:12.2]} 15... Qh4 {[%clk 0:01:20.7]} 16. Qf3 {[%clk 0:02:10.2]} 16... Rad8
{[%clk 0:01:16.7]} 17. Rad1 {[%clk 0:02:01.7]} 17... Ne7 {[%clk 0:01:07.9]} 18.
Qg3 {[%clk 0:01:53.5]} 18... Qh5 {[%clk 0:01:07]} 19. Qg5 {[%clk 0:01:44.7]}
19... Qf3 {[%clk 0:00:50.9]} 20. Qg2 {[%clk 0:01:37]} 20... Qh5 {[%clk 0:00:44]}
21. Qxb7 {[%clk 0:01:27.7]} 21... Nd5 {[%clk 0:00:38]} 22. f3 {[%clk 0:01:02.9]}
22... Bc5+ {[%clk 0:00:33.1]} 23. Kh1 {[%clk 0:01:00]} 23... Ne3 {[%clk
0:00:27.8]} 24. Bxe3 {[%clk 0:00:58.3]} 24... Bxe3 {[%clk 0:00:28.7]} 25. Qe4
{[%clk 0:00:58.4]} 25... Bb6 {[%clk 0:00:25.5]} 26. Bc4 {[%clk 0:00:54.9]} 26...
Rxd1 {[%clk 0:00:22.4]} 27. Rxd1 {[%clk 0:00:55.8]} 27... Kg7 {[%clk 0:00:20.2]}
28. Rd7 {[%clk 0:00:51.4]} 28... Rf8 {[%clk 0:00:20.2]} 29. e6 {[%clk
0:00:44.7]} 29... Qc5 {[%clk 0:00:15.8]} 30. Qe5+ {[%clk 0:00:45.1]} 30... Qxe5
{[%clk 0:00:15.3]} 31. fxe5 {[%clk 0:00:46]} 31... Kh6 {[%clk 0:00:12.4]} 32. e7
{[%clk 0:00:45.7]} 32... Re8 {[%clk 0:00:10.9]} 33. Bxf7 {[%clk 0:00:46.4]}
33... Rb8 {[%clk 0:00:10.3]} 34. e8=Q {[%clk 0:00:45.8]} 1-0

[Event "Late-Titled-Tuesday-Blitz-April-16-2024"]
[Site "Chess.com"]
[Date "2024.04.16"]
[Round "6"]
[White "ArchibaldCerveza29"]
[Black "Zavgorodniy_Sergiy"]
[Result "1-0"]
[WhiteElo "2380"]
[BlackElo "2609"]
[TimeControl "180+1"]
[EndTime "15:02:38 PDT"]
[Termination "ArchibaldCerveza29 won by resignation"]

1. e4 {[%clk 0:03:00.9]} 1... c6 {[%clk 0:03:00]} 2. d4 {[%clk 0:03:00.2]} 2...
d5 {[%clk 0:03:00.9]} 3. exd5 {[%clk 0:03:00.9]} 3... cxd5 {[%clk 0:03:01.2]} 4.
c4 {[%clk 0:03:01.8]} 4... Nf6 {[%clk 0:03:01]} 5. Nc3 {[%clk 0:03:02.7]} 5...
e6 {[%clk 0:03:01.4]} 6. Nf3 {[%clk 0:03:02.6]} 6... Be7 {[%clk 0:03:01.9]} 7.
cxd5 {[%clk 0:03:01.5]} 7... Nxd5 {[%clk 0:03:02.8]} 8. Bd3 {[%clk 0:03:01.6]}
8... Nc6 {[%clk 0:03:02.9]} 9. O-O {[%clk 0:03:01.8]} 9... O-O {[%clk
0:03:02.9]} 10. Re1 {[%clk 0:03:02.5]} 10... Nf6 {[%clk 0:03:00.2]} 11. a3
{[%clk 0:03:02.7]} 11... b6 {[%clk 0:02:58.8]} 12. Bc2 {[%clk 0:03:02.6]} 12...
Bb7 {[%clk 0:02:58.1]} 13. Qd3 {[%clk 0:03:02.7]} 13... g6 {[%clk 0:02:56.1]}
14. Bh6 {[%clk 0:03:01.1]} 14... Re8 {[%clk 0:02:56.1]} 15. Ba4 {[%clk 0:03:02]}
15... Rc8 {[%clk 0:02:49.3]} 16. Rad1 {[%clk 0:02:57.4]} 16... Nd5 {[%clk
0:02:47.5]} 17. Ne4 {[%clk 0:02:53.1]} 17... a6 {[%clk 0:02:42.5]} 18. Ne5
{[%clk 0:02:44.5]} 18... b5 {[%clk 0:02:34.2]} 19. Bb3 {[%clk 0:02:41.6]} 19...
Ba8 {[%clk 0:02:26.3]} 20. Qf3 {[%clk 0:02:36.8]} 20... f6 {[%clk 0:02:20]} 21.
Nxg6 {[%clk 0:01:09.1]} 21... hxg6 {[%clk 0:02:16.6]} 22. Qg4 {[%clk 0:01:08.9]}
22... Kh7 {[%clk 0:02:01.1]} 23. Qh3 {[%clk 0:01:05]} 23... Rh8 {[%clk
0:01:24.8]} 24. Bf8+ {[%clk 0:00:22.1]} 24... Kg8 {[%clk 0:01:24.4]} 25. Qxe6+
{[%clk 0:00:22.6]} 25... Kxf8 {[%clk 0:01:22.6]} 26. Bxd5 {[%clk 0:00:23.1]}
26... Ne5 {[%clk 0:00:36.4]} 27. dxe5 {[%clk 0:00:24]} 27... Bxd5 {[%clk
0:00:35.9]} 28. Rxd5 {[%clk 0:00:24]} 28... Qa5 {[%clk 0:00:36.1]} 29. Qxc8+
{[%clk 0:00:18.6]} 29... Kf7 {[%clk 0:00:33.8]} 30. e6+ {[%clk 0:00:17.1]} 30...
Kg7 {[%clk 0:00:33.9]} 31. Qc3 {[%clk 0:00:17.8]} 31... b4 {[%clk 0:00:32.5]}
32. Rxa5 {[%clk 0:00:15.4]} 1-0

[Event "Late-Titled-Tuesday-Blitz-April-16-2024"]
[Site "Chess.com"]
[Date "2024.04.16"]
[Round "6"]
[White "GMG"]
[Black "Msb2"]
[Result "0-1"]
[WhiteElo "2825"]
[BlackElo "3020"]
[TimeControl "180+1"]
[EndTime "15:02:39 PDT"]
[Termination "Msb2 won on time"]

1. Nf3 {[%clk 0:02:59.6]} 1... d5 {[%clk 0:03:00.3]} 2. g3 {[%clk 0:02:59.4]}
2... e6 {[%clk 0:03:00.8]} 3. Bg2 {[%clk 0:02:58.5]} 3... Nf6 {[%clk 0:03:01.4]}
4. c4 {[%clk 0:02:58.1]} 4... Nc6 {[%clk 0:03:01.3]} 5. d4 {[%clk 0:02:54.2]}
5... Bd6 {[%clk 0:03:01.2]} 6. b3 {[%clk 0:02:52.4]} 6... O-O {[%clk 0:03:01.6]}
7. Bb2 {[%clk 0:02:52.8]} 7... dxc4 {[%clk 0:03:02.2]} 8. bxc4 {[%clk
0:02:52.9]} 8... e5 {[%clk 0:03:02.9]} 9. d5 {[%clk 0:02:24.7]} 9... Na5 {[%clk
0:02:53.4]} 10. Nxe5 {[%clk 0:02:19.3]} 10... Qe7 {[%clk 0:02:44]} 11. Qd4
{[%clk 0:02:00.5]} 11... Re8 {[%clk 0:02:30.8]} 12. f4 {[%clk 0:02:00.6]} 12...
Bc5 {[%clk 0:02:28.6]} 13. Qd3 {[%clk 0:01:52.4]} 13... c6 {[%clk 0:02:20.7]}
14. Nc3 {[%clk 0:01:41.6]} 14... Ng4 {[%clk 0:02:08.6]} 15. Nxg4 {[%clk
0:01:04.7]} 15... Bxg4 {[%clk 0:02:09.5]} 16. e4 {[%clk 0:01:05]} 16... b5
{[%clk 0:01:55.2]} 17. cxb5 {[%clk 0:01:05.9]} 17... cxb5 {[%clk 0:01:56.1]} 18.
h3 {[%clk 0:00:59.7]} 18... Nc4 {[%clk 0:01:37.5]} 19. Bc1 {[%clk 0:00:53.7]}
19... Bd7 {[%clk 0:01:29.6]} 20. Kf1 {[%clk 0:00:46.3]} 20... Rac8 {[%clk
0:01:26.9]} 21. Bf3 {[%clk 0:00:35.4]} 21... b4 {[%clk 0:01:18.7]} 22. Qxc4
{[%clk 0:00:19.6]} 22... Bb6 {[%clk 0:01:19]} 23. Qe2 {[%clk 0:00:19]} 23...
Rxc3 {[%clk 0:01:16.9]} 24. Kg2 {[%clk 0:00:17.8]} 24... Qc5 {[%clk 0:01:12.2]}
25. Bd2 {[%clk 0:00:16.3]} 25... Bb5 {[%clk 0:01:12.9]} 26. Qe1 {[%clk
0:00:13.5]} 26... Rxf3 {[%clk 0:00:58.7]} 27. Kxf3 {[%clk 0:00:14.4]} 27... Bd3
{[%clk 0:00:58.7]} 28. Rc1 {[%clk 0:00:11.9]} 28... Qd4 {[%clk 0:00:57.6]} 29.
e5 {[%clk 0:00:06.2]} 29... Qxd5+ {[%clk 0:00:57.6]} 30. Kg4 {[%clk 0:00:06.5]}
30... Be4 {[%clk 0:00:48.2]} 31. Bxb4 {[%clk 0:00:04.5]} 31... Qe6+ {[%clk
0:00:42.7]} 0-1

[Event "Late-Titled-Tuesday-Blitz-April-16-2024"]
[Site "Chess.com"]
[Date "2024.04.16"]
[Round "6"]
[White "chucksterf10"]
[Black "platy3"]
[Result "0-1"]
[WhiteElo "2579"]
[BlackElo "2882"]
[TimeControl "180+1"]
[EndTime "15:02:44 PDT"]
[Termination "platy3 won on time"]

1. d4 {[%clk 0:02:57.2]} 1... Nf6 {[%clk 0:02:59.9]} 2. c4 {[%clk 0:02:56.8]}
2... g6 {[%clk 0:02:58.3]} 3. f3 {[%clk 0:02:52.3]} 3... Bg7 {[%clk 0:02:56.5]}
4. e4 {[%clk 0:02:52.8]} 4... d6 {[%clk 0:02:57.4]} 5. Ne2 {[%clk 0:02:51.6]}
5... O-O {[%clk 0:02:51.6]} 6. Be3 {[%clk 0:02:51.4]} 6... a6 {[%clk 0:02:49]}
7. Nbc3 {[%clk 0:02:51.4]} 7... c6 {[%clk 0:02:48.2]} 8. a4 {[%clk 0:02:50.9]}
8... a5 {[%clk 0:02:48]} 9. Qd2 {[%clk 0:02:50]} 9... Na6 {[%clk 0:02:46.7]} 10.
Bh6 {[%clk 0:02:49.5]} 10... Nb4 {[%clk 0:02:46.9]} 11. Bxg7 {[%clk 0:02:49.2]}
11... Kxg7 {[%clk 0:02:47.5]} 12. h4 {[%clk 0:02:49.7]} 12... h5 {[%clk
0:02:46.2]} 13. Nf4 {[%clk 0:02:38.8]} 13... e5 {[%clk 0:02:42.3]} 14. Nfe2
{[%clk 0:02:16.1]} 14... Be6 {[%clk 0:02:37.4]} 15. d5 {[%clk 0:02:15.8]} 15...
cxd5 {[%clk 0:02:37.3]} 16. cxd5 {[%clk 0:02:14.2]} 16... Bd7 {[%clk 0:02:37.7]}
17. Nc1 {[%clk 0:02:10.6]} 17... Rc8 {[%clk 0:02:34.7]} 18. Be2 {[%clk
0:02:04.8]} 18... Qb6 {[%clk 0:02:33]} 19. Nd3 {[%clk 0:02:01.6]} 19... Nxd3+
{[%clk 0:02:17.8]} 20. Bxd3 {[%clk 0:01:58.2]} 20... Rc7 {[%clk 0:02:18.5]} 21.
Qf2 {[%clk 0:01:52.6]} 21... Qb4 {[%clk 0:02:11.2]} 22. O-O {[%clk 0:01:47]}
22... Rfc8 {[%clk 0:02:11.4]} 23. f4 {[%clk 0:01:39.4]} 23... Ng4 {[%clk
0:02:05.7]} 24. Qd2 {[%clk 0:01:35]} 24... Qd4+ {[%clk 0:01:56.4]} 25. Kh1
{[%clk 0:01:33.5]} 25... Rxc3 {[%clk 0:01:56.4]} 26. bxc3 {[%clk 0:01:31.9]}
26... Rxc3 {[%clk 0:01:57.3]} 27. Rad1 {[%clk 0:01:15.6]} 27... Bxa4 {[%clk
0:01:51]} 28. fxe5 {[%clk 0:00:58.1]} 28... Nxe5 {[%clk 0:01:49]} 29. Be2 {[%clk
0:00:44.1]} 29... Qxd2 {[%clk 0:01:34.8]} 30. Rxd2 {[%clk 0:00:45]} 30... Rc2
{[%clk 0:01:30.3]} 31. Rxc2 {[%clk 0:00:36.2]} 31... Bxc2 {[%clk 0:01:31.2]} 32.
Ra1 {[%clk 0:00:29.4]} 32... b6 {[%clk 0:01:29.3]} 33. Ra2 {[%clk 0:00:20.2]}
33... Bb3 {[%clk 0:01:22.8]} 34. Ra3 {[%clk 0:00:17.1]} 34... Bc4 {[%clk
0:01:11.1]} 35. Bxc4 {[%clk 0:00:15.1]} 35... Nxc4 {[%clk 0:01:12]} 36. Rb3
{[%clk 0:00:15.7]} 36... Kf6 {[%clk 0:01:08.9]} 37. Rf3+ {[%clk 0:00:06.3]}
37... Ke7 {[%clk 0:01:08.9]} 38. Rb3 {[%clk 0:00:02.5]} 38... Kf6 {[%clk
0:00:59.4]} 39. Rf3+ {[%clk 0:00:02.5]} 39... Ke5 {[%clk 0:01:00.2]} 40. Rxf7
{[%clk 0:00:03.2]} 40... a4 {[%clk 0:01:00.9]} 41. Ra7 {[%clk 0:00:01.4]} 41...
a3 {[%clk 0:00:58.6]} 0-1

[Event "Late-Titled-Tuesday-Blitz-April-16-2024"]
[Site "Chess.com"]
[Date "2024.04.16"]
[Round "6"]
[White "Vincefm"]
[Black "rionelG"]
[Result "1-0"]
[WhiteElo "2355"]
[BlackElo "2185"]
[TimeControl "180+1"]
[EndTime "15:02:45 PDT"]
[Termination "Vincefm won by checkmate"]

1. e4 {[%clk 0:03:00.9]} 1... c5 {[%clk 0:02:59.8]} 2. Nf3 {[%clk 0:03:01.1]}
2... d6 {[%clk 0:02:59.6]} 3. d4 {[%clk 0:03:01]} 3... cxd4 {[%clk 0:03:00.5]}
4. Nxd4 {[%clk 0:03:00]} 4... Nf6 {[%clk 0:03:01.1]} 5. Nc3 {[%clk 0:03:00.6]}
5... a6 {[%clk 0:03:01.8]} 6. Be3 {[%clk 0:03:00.8]} 6... Ng4 {[%clk 0:03:01.7]}
7. Bc1 {[%clk 0:02:59.4]} 7... Nf6 {[%clk 0:03:01.5]} 8. f3 {[%clk 0:02:56]}
8... e5 {[%clk 0:03:01.7]} 9. Nb3 {[%clk 0:02:56.4]} 9... Be6 {[%clk 0:03:02.1]}
10. Be3 {[%clk 0:02:56.5]} 10... Nbd7 {[%clk 0:02:57.3]} 11. Qd2 {[%clk
0:02:56.6]} 11... h5 {[%clk 0:02:57.4]} 12. O-O-O {[%clk 0:02:54.7]} 12... Rc8
{[%clk 0:02:56]} 13. Kb1 {[%clk 0:02:54.1]} 13... b5 {[%clk 0:02:54.1]} 14. g3
{[%clk 0:02:46.1]} 14... Nb6 {[%clk 0:02:42.9]} 15. Bd3 {[%clk 0:02:44.7]} 15...
Nc4 {[%clk 0:01:38.4]} 16. Bxc4 {[%clk 0:02:42.6]} 16... bxc4 {[%clk 0:01:38.4]}
17. Nc1 {[%clk 0:02:37.5]} 17... Be7 {[%clk 0:01:26.6]} 18. h3 {[%clk
0:02:37.2]} 18... Rb8 {[%clk 0:01:07.7]} 19. g4 {[%clk 0:02:35.1]} 19... Qa5
{[%clk 0:00:55.5]} 20. Ka1 {[%clk 0:02:00.6]} 20... Qb4 {[%clk 0:00:53.8]} 21.
b3 {[%clk 0:02:00]} 21... Rc8 {[%clk 0:00:26.1]} 22. N1e2 {[%clk 0:01:12.8]}
22... Nd7 {[%clk 0:00:22.5]} 23. Rhg1 {[%clk 0:00:53.6]} 23... cxb3 {[%clk
0:00:20.1]} 24. cxb3 {[%clk 0:00:53.1]} 24... Nc5 {[%clk 0:00:18.3]} 25. Bxc5
{[%clk 0:00:49.6]} 25... Rxc5 {[%clk 0:00:18.1]} 26. gxh5 {[%clk 0:00:46.5]}
26... Rxh5 {[%clk 0:00:16.6]} 27. Rxg7 {[%clk 0:00:44.3]} 27... Kf8 {[%clk
0:00:16.5]} 28. Rdg1 {[%clk 0:00:41]} 28... Rh8 {[%clk 0:00:14.9]} 29. Qh6
{[%clk 0:00:33.7]} 29... Rxh6 {[%clk 0:00:03]} 30. Rg8# {[%clk 0:00:34]} 1-0

[Event "Late-Titled-Tuesday-Blitz-April-16-2024"]
[Site "Chess.com"]
[Date "2024.04.16"]
[Round "6"]
[White "Lady_Nika"]
[Black "Hirna2005"]
[Result "0-1"]
[WhiteElo "2480"]
[BlackElo "2354"]
[TimeControl "180+1"]
[EndTime "15:02:48 PDT"]
[Termination "Hirna2005 won by resignation"]

1. e4 {[%clk 0:03:00.9]} 1... g6 {[%clk 0:02:59.9]} 2. d4 {[%clk 0:03:00.8]}
2... Bg7 {[%clk 0:03:00.2]} 3. c4 {[%clk 0:03:01.7]} 3... d6 {[%clk 0:03:00.7]}
4. Nc3 {[%clk 0:03:01.9]} 4... Nc6 {[%clk 0:03:00.8]} 5. Be3 {[%clk 0:03:01.9]}
5... e5 {[%clk 0:03:00.7]} 6. d5 {[%clk 0:03:02]} 6... Nce7 {[%clk 0:03:00.2]}
7. Bd3 {[%clk 0:03:02.1]} 7... f5 {[%clk 0:03:00.1]} 8. f3 {[%clk 0:03:02.3]}
8... Nf6 {[%clk 0:03:00]} 9. Nge2 {[%clk 0:03:02.3]} 9... O-O {[%clk 0:02:58.3]}
10. Qd2 {[%clk 0:03:02.5]} 10... fxe4 {[%clk 0:02:56.6]} 11. Nxe4 {[%clk
0:03:02.4]} 11... Nf5 {[%clk 0:02:56.8]} 12. Bg5 {[%clk 0:03:01.5]} 12... Qe8
{[%clk 0:02:51.2]} 13. g4 {[%clk 0:02:53.9]} 13... Nd4 {[%clk 0:02:29.8]} 14.
Nxd4 {[%clk 0:02:53.5]} 14... exd4 {[%clk 0:02:30.1]} 15. Bxf6 {[%clk
0:02:36.2]} 15... Rxf6 {[%clk 0:02:25.2]} 16. Qe2 {[%clk 0:02:30.8]} 16... Rf8
{[%clk 0:02:23.1]} 17. O-O-O {[%clk 0:02:29.6]} 17... Qa4 {[%clk 0:02:15.8]} 18.
Kb1 {[%clk 0:02:18]} 18... Bd7 {[%clk 0:02:14.5]} 19. c5 {[%clk 0:02:12.3]}
19... Rae8 {[%clk 0:02:06.3]} 20. Qg2 {[%clk 0:02:08.2]} 20... Re5 {[%clk
0:01:47.6]} 21. cxd6 {[%clk 0:02:06.1]} 21... cxd6 {[%clk 0:01:41.8]} 22. Nxd6
{[%clk 0:02:06]} 22... Qb4 {[%clk 0:01:28.6]} 23. Ne4 {[%clk 0:02:02.8]} 23...
Rxd5 {[%clk 0:01:27]} 24. a3 {[%clk 0:02:02.6]} 24... Qb6 {[%clk 0:01:26.2]} 25.
Bc4 {[%clk 0:02:02.3]} 25... Be6 {[%clk 0:01:24.8]} 26. Rhe1 {[%clk 0:01:49.1]}
26... Re5 {[%clk 0:01:16.3]} 27. Bxe6+ {[%clk 0:01:38.8]} 27... Rxe6 {[%clk
0:01:15.4]} 28. Ng5 {[%clk 0:01:33.1]} 28... Rxe1 {[%clk 0:01:09.2]} 29. Rxe1
{[%clk 0:01:34]} 29... Qa5 {[%clk 0:01:05.3]} 30. f4 {[%clk 0:01:15.4]} 30...
Qxe1+ {[%clk 0:01:04.8]} 31. Ka2 {[%clk 0:01:15.4]} 31... h6 {[%clk 0:00:59]}
32. Qd5+ {[%clk 0:01:15]} 32... Kh8 {[%clk 0:00:56.5]} 33. Ne6 {[%clk
0:01:15.1]} 33... Re8 {[%clk 0:00:49.1]} 34. Nc7 {[%clk 0:01:14.9]} 34... Re7
{[%clk 0:00:45.6]} 35. Qxb7 {[%clk 0:01:13.4]} 35... d3 {[%clk 0:00:39.4]} 36.
Qb8+ {[%clk 0:01:07.4]} 36... Kh7 {[%clk 0:00:39.4]} 37. Nd5 {[%clk 0:01:03.2]}
37... Qe6 {[%clk 0:00:35.6]} 38. Qb3 {[%clk 0:00:43.4]} 38... Rd7 {[%clk
0:00:35.2]} 39. Nf6+ {[%clk 0:00:35.9]} 39... Qxf6 {[%clk 0:00:34.9]} 40. g5
{[%clk 0:00:36.5]} 40... Qf7 {[%clk 0:00:33.5]} 41. gxh6 {[%clk 0:00:35.4]}
41... Qxb3+ {[%clk 0:00:30.7]} 42. Kxb3 {[%clk 0:00:36.3]} 0-1

[Event "Late-Titled-Tuesday-Blitz-April-16-2024"]
[Site "Chess.com"]
[Date "2024.04.16"]
[Round "6"]
[White "ferdipy"]
[Black "Viktoker"]
[Result "1-0"]
[WhiteElo "2329"]
[BlackElo "2470"]
[TimeControl "180+1"]
[EndTime "15:02:49 PDT"]
[Termination "ferdipy won by checkmate"]

1. e4 {[%clk 0:02:39.3]} 1... c6 {[%clk 0:02:59.5]} 2. d4 {[%clk 0:02:37.5]}
2... d5 {[%clk 0:03:00.4]} 3. exd5 {[%clk 0:02:37.9]} 3... cxd5 {[%clk
0:03:01.3]} 4. Bd3 {[%clk 0:02:38.1]} 4... Nc6 {[%clk 0:02:59.7]} 5. c3 {[%clk
0:02:39]} 5... Qc7 {[%clk 0:03:00.1]} 6. Nf3 {[%clk 0:02:38.4]} 6... Bg4 {[%clk
0:02:59.5]} 7. h3 {[%clk 0:02:38.9]} 7... Bh5 {[%clk 0:02:58.4]} 8. Bg5 {[%clk
0:02:39.5]} 8... e6 {[%clk 0:02:47.8]} 9. Nbd2 {[%clk 0:02:37.6]} 9... Bd6
{[%clk 0:02:47.1]} 10. O-O {[%clk 0:02:36]} 10... f6 {[%clk 0:02:46.1]} 11. Be3
{[%clk 0:02:33.1]} 11... Nge7 {[%clk 0:02:45.4]} 12. Be2 {[%clk 0:02:32.8]}
12... O-O-O {[%clk 0:02:42.3]} 13. c4 {[%clk 0:02:33]} 13... g5 {[%clk
0:02:37.4]} 14. c5 {[%clk 0:02:27.6]} 14... Bf4 {[%clk 0:02:37.6]} 15. Bxf4
{[%clk 0:02:23.3]} 15... gxf4 {[%clk 0:02:38.5]} 16. b4 {[%clk 0:02:10.6]} 16...
Bxf3 {[%clk 0:02:20.1]} 17. Nxf3 {[%clk 0:02:09.4]} 17... e5 {[%clk 0:02:19.7]}
18. b5 {[%clk 0:02:06.4]} 18... Nxd4 {[%clk 0:02:14.6]} 19. Nxd4 {[%clk
0:02:05.3]} 19... exd4 {[%clk 0:02:15.5]} 20. Qxd4 {[%clk 0:02:05.5]} 20... Qe5
{[%clk 0:02:12.3]} 21. Bg4+ {[%clk 0:01:43.5]} 21... Kb8 {[%clk 0:02:09.4]} 22.
Qa4 {[%clk 0:01:41.3]} 22... f5 {[%clk 0:01:59.2]} 23. b6 {[%clk 0:01:39.3]}
23... a6 {[%clk 0:01:52.7]} 24. Rfe1 {[%clk 0:01:24.9]} 24... Qf6 {[%clk
0:01:46.5]} 25. Qxf4+ {[%clk 0:01:23.9]} 25... Ka8 {[%clk 0:01:42.6]} 26. Bf3
{[%clk 0:01:23.4]} 26... Nc6 {[%clk 0:01:39.5]} 27. Rad1 {[%clk 0:01:20.2]}
27... d4 {[%clk 0:01:35.6]} 28. Bxc6 {[%clk 0:01:18.5]} 28... Qxc6 {[%clk
0:01:35.9]} 29. Rxd4 {[%clk 0:01:08.8]} 29... Rhg8 {[%clk 0:01:35.2]} 30. Rxd8+
{[%clk 0:01:06.6]} 30... Rxd8 {[%clk 0:01:34]} 31. Qxf5 {[%clk 0:01:06.1]} 31...
Rg8 {[%clk 0:01:30.8]} 32. f3 {[%clk 0:01:04.6]} 32... a5 {[%clk 0:01:24.9]} 33.
Re6 {[%clk 0:01:00]} 33... Qc8 {[%clk 0:01:24.1]} 34. Rf6 {[%clk 0:00:57.4]}
34... Qd8 {[%clk 0:01:17]} 35. Rd6 {[%clk 0:00:55.2]} 35... Qe8 {[%clk 0:01:16]}
36. Qe4 {[%clk 0:00:49.6]} 36... Qc8 {[%clk 0:01:11.4]} 37. c6 {[%clk
0:00:46.1]} 37... bxc6 {[%clk 0:01:04.9]} 38. Qxc6+ {[%clk 0:00:45.3]} 38...
Qxc6 {[%clk 0:01:04.9]} 39. Rxc6 {[%clk 0:00:46.2]} 39... Kb7 {[%clk 0:01:05.8]}
40. Rh6 {[%clk 0:00:46.7]} 40... Rg7 {[%clk 0:01:05.2]} 41. a4 {[%clk
0:00:47.2]} 41... Rd7 {[%clk 0:01:04.9]} 42. g4 {[%clk 0:00:46.5]} 42... Rd4
{[%clk 0:01:05]} 43. Rxh7+ {[%clk 0:00:41.4]} 43... Kxb6 {[%clk 0:01:05.2]} 44.
h4 {[%clk 0:00:39.7]} 44... Rxa4 {[%clk 0:01:05.5]} 45. h5 {[%clk 0:00:40.1]}
45... Ra2 {[%clk 0:01:02.2]} 46. Rh8 {[%clk 0:00:38.4]} 46... a4 {[%clk
0:01:02.8]} 47. Rb8+ {[%clk 0:00:38]} 47... Ka7 {[%clk 0:01:02.2]} 48. Rb4
{[%clk 0:00:38.1]} 48... a3 {[%clk 0:01:01.2]} 49. h6 {[%clk 0:00:38.7]} 49...
Ra1+ {[%clk 0:00:57.3]} 50. Kh2 {[%clk 0:00:39]} 50... Ka6 {[%clk 0:00:57.3]}
51. h7 {[%clk 0:00:37.6]} 51... Ka5 {[%clk 0:00:57.8]} 52. Rb8 {[%clk
0:00:37.3]} 52... a2 {[%clk 0:00:58]} 53. h8=Q {[%clk 0:00:35.5]} 53... Rh1+
{[%clk 0:00:56.8]} 54. Kxh1 {[%clk 0:00:34.5]} 54... a1=Q+ {[%clk 0:00:57.7]}
55. Qxa1# {[%clk 0:00:34.3]} 1-0